fUST/lending_fUST_20260605
["ID","MTS","AMOUNT","RATE_DAILY","PERIOD"]
[424113291,1780600244000,-190.95454693,0.00016105,2]
[424113301,1780600244000,-728.95,0.00016164,2]
[424113305,1780600244000,-427.22603968,0.00016164,2]
[424113297,1780600244000,-560.99253697,0.00016164,2]
[424113261,1780600244000,-297.14428225,0.0001589,2]
[424113295,1780600244000,-265.72348856,0.00016163,2]
[424113299,1780600244000,-500.0,0.00016164,2]
[424113293,1780600244000,-500.0,0.00016163,2]
[424113308,1780600244000,-500.0,0.00016164,2]
[424113306,1780600244000,-500.0,0.00016164,2]
[424113314,1780600244000,-500.0,0.00016164,2]
[424113287,1780600244000,-180.07003268,0.00016105,2]
[424113256,1780600244000,-500.0,0.0001589,2]
[424113236,1780600244000,-500.0,0.00015889,2]
[424113240,1780600244000,-512.35,0.0001589,2]
[424113312,1780600244000,-500.0,0.00016164,2]
[424113198,1780600244000,-693.18479602,0.00014794,2]
[424113207,1780600244000,-1232.01515831,0.00015342,2]
[424113209,1780600244000,-203.713,0.00015342,2]
[424113201,1780600244000,-32.75484169,0.00015342,2]
[424113199,1780600244000,-1264.77,0.00015068,2]
[424113211,1780600244000,-288.48157092,0.00015616,2]
[424113214,1780600244000,-500.0,0.00015616,2]
[424113216,1780600244000,-500.0,0.00015616,2]
[424113212,1780600244000,-500.0,0.00015616,2]
[424113220,1780600244000,-500.0,0.00015616,2]
[424113218,1780600244000,-500.0,0.00015616,2]
[424113227,1780600244000,-444.0,0.00015714,2]
[424113246,1780600244000,-728.95,0.0001589,2]
[424113223,1780600244000,-1264.77,0.00015616,2]
[424113231,1780600244000,-1291.78826026,0.000158,2]
[424113222,1780600244000,-500.0,0.00015616,2]
[424113225,1780600244000,-1415.0,0.00015714,2]
[424113233,1780600244000,-3267.00692358,0.00015841,2]
[424113234,1780600244000,-500.0,0.00015889,2]
[424113248,1780600244000,-500.0,0.0001589,2]
[424113250,1780600244000,-500.0,0.0001589,2]
[424113252,1780600244000,-500.0,0.0001589,2]
[424113254,1780600244000,-500.0,0.0001589,2]
[424113242,1780600244000,-409.35954204,0.0001589,2]
[424113238,1780600244000,-500.0,0.0001589,2]
[424113257,1780600244000,-500.0,0.0001589,2]
[424113244,1780600244000,-500.0,0.0001589,2]
[424113229,1780600244000,-185.0,0.00015714,2]
[424113316,1780600244000,-1264.77,0.00016164,2]
[424113343,1780600244000,-1264.77,0.00016438,2]
[424113320,1780600244000,-587.0,0.00016332,2]
[424113386,1780600244000,-381.90909385,0.00016889,2]
[424113384,1780600244000,-348.89153758,0.00016889,2]
[424113382,1780600244000,-360.14006536,0.00016889,2]
[424113391,1780600244000,-500.0,0.00016986,2]
[424113389,1780600244000,-500.0,0.00016985,2]
[424113393,1780600244000,-728.95,0.00016986,2]
[424113397,1780600244000,-500.0,0.00016986,2]
[424113395,1780600244000,-500.0,0.00016986,2]
[424113403,1780600244000,-500.0,0.00016986,2]
[424113404,1780600244000,-1264.77,0.00016986,2]
[424113406,1780600244000,-339.69183599,0.00017259,2]
[424113399,1780600244000,-92.20579494,0.00016986,2]
[424113401,1780600244000,-407.79420506,0.00016986,2]
[424113388,1780600244000,-182.8873355,0.00016889,2]
[424113408,1780600244000,-160.30816401,0.00017259,2]
[424113414,1780600244000,-500.0,0.0001726,2]
[424113318,1780600244000,-1291.78826026,0.000163,2]
[424113415,1780600244000,-500.0,0.0001726,2]
[424113420,1780600244000,-500.0,0.0001726,2]
[424113424,1780600244000,-1264.77,0.0001726,2]
[424113422,1780600244000,-645.64497724,0.0001726,2]
[424113426,1780600244000,-331.23803039,0.00017308,2]
[424113432,1780600244000,-154.92765277,0.00017412,2]
[424113430,1780600244000,-159.70209072,0.00017412,2]
[424113428,1780600244000,-183.16891586,0.00017412,2]
[424113436,1780600244000,-587.73083262,0.00017412,2]
[424113438,1780600244000,-238.62541422,0.00017412,2]
[424113434,1780600244000,-477.05846343,0.00017412,2]
[424113410,1780600244000,-500.0,0.0001726,2]
[424113380,1780600244000,-362.54388335,0.00016889,2]
[424113412,1780600244000,-728.95,0.0001726,2]
[424113376,1780600244000,-365.93140967,0.00016889,2]
[424113378,1780600244000,-300.52047566,0.00016889,2]
[424113326,1780600244000,-500.0,0.00016437,2]
[424113327,1780600244000,-500.0,0.00016438,2]
[424113329,1780600244000,-728.95,0.00016438,2]
[424113331,1780600244000,-500.0,0.00016438,2]
[424113322,1780600244000,-221.71348547,0.00016334,2]
[424113335,1780600244000,-500.0,0.00016438,2]
[424113337,1780600244000,-500.0,0.00016438,2]
[424113333,1780600244000,-198.58346244,0.00016438,2]
[424113339,1780600244000,-500.0,0.00016438,2]
[424113341,1780600244000,-500.0,0.00016438,2]
[424113346,1780600244000,-500.0,0.00016712,2]
[424113345,1780600244000,-500.0,0.00016711,2]
[424113324,1780600244000,-1291.78826026,0.000164,2]
[424113356,1780600244000,-500.0,0.00016712,2]
[424113374,1780600244000,-1060.45579917,0.00016889,2]
[424113360,1780600244000,-500.0,0.00016712,2]
[424113372,1780600244000,-621.89592301,0.00016889,2]
[424113354,1780600244000,-606.69206209,0.00016712,2]
[424113366,1780600244000,-391.82055508,0.00016889,2]
[424113364,1780600244000,-318.03897562,0.00016889,2]
[424113368,1780600244000,-318.34422696,0.00016889,2]
[424113370,1780600244000,-300.32542446,0.00016889,2]
[424113348,1780600244000,-34.4105236,0.00016712,2]
[424113351,1780600244000,-694.5394764,0.00016712,2]
[424113358,1780600244000,-500.0,0.00016712,2]
[424113352,1780600244000,-500.0,0.00016712,2]
[424113362,1780600244000,-1264.77,0.00016712,2]
[424113486,1780600245000,-1264.77,0.00017534,2]
[424113494,1780600245000,-366.33783172,0.00017761,2]
[424113490,1780600245000,-477.25082844,0.00017736,2]
[424113482,1780600245000,-189.09472982,0.00017534,2]
[424113492,1780600245000,-353.71064494,0.00017736,2]
[424113484,1780600245000,-449.74994418,0.00017534,2]
[424113488,1780600245000,-221.71348547,0.00017701,2]
[424113496,1780600245000,-213.66428552,0.00017761,2]
[424113514,1780600245000,-217.52567752,0.00017761,2]
[424113509,1780600245000,-636.07795124,0.00017761,2]
[424113512,1780600245000,-304.04779671,0.00017761,2]
[424113499,1780600245000,-232.57196844,0.00017761,2]
[424113511,1780600245000,-783.64111015,0.00017761,2]
[424113501,1780600245000,-217.33212045,0.00017761,2]
[424113478,1780600245000,-728.95,0.00017534,2]
[424113516,1780600245000,-206.30782551,0.00017761,2]
[424113498,1780600245000,-319.40418145,0.00017761,2]
[424113480,1780600245000,-500.0,0.00017534,2]
[424113452,1780600245000,-548.8971145,0.00017412,2]
[424113474,1780600245000,-500.0,0.00017533,2]
[424113503,1780600245000,-194.26649148,0.00017761,2]
[424113440,1780600245000,-176.85532247,0.00017412,2]
[424113444,1780600245000,-477.51634044,0.00017412,2]
[424113442,1780600245000,-158.63897907,0.00017412,2]
[424113448,1780600245000,-932.84388452,0.00017412,2]
[424113450,1780600245000,-1590.68369875,0.00017412,2]
[424113446,1780600245000,-450.48813669,0.00017412,2]
[424113454,1780600245000,-450.78071349,0.00017412,2]
[424113456,1780600245000,-167.38217933,0.00017412,2]
[424113458,1780600245000,-283.12119271,0.00017412,2]
[424113460,1780600245000,-543.81582502,0.00017412,2]
[424113470,1780600245000,-365.77467099,0.00017412,2]
[424113468,1780600245000,-572.86364078,0.00017412,2]
[424113463,1780600245000,-540.21009804,0.00017412,2]
[424113465,1780600245000,-523.33730637,0.00017412,2]
[424113462,1780600245000,-188.81276744,0.00017412,2]
[424113472,1780600245000,-435.476,0.00017417,2]
[424113476,1780600245000,-500.0,0.00017534,2]
[424113518,1780600245000,-180.22369928,0.00017761,2]
[424113533,1780600245000,-201.73880817,0.00017761,2]
[424113522,1780600245000,-636.68845392,0.00017761,2]
[424113563,1780600245000,-500.0,0.00018081,2]
[424113569,1780600245000,-1264.77,0.00018082,2]
[424113553,1780600245000,-500.0,0.00017807,2]
[424113555,1780600245000,-728.95,0.00017808,2]
[424113552,1780600245000,-566.24238542,0.00017761,2]
[424113557,1780600245000,-500.0,0.00017808,2]
[424113571,1780600245000,-906.35970837,0.00018084,2]
[424113567,1780600245000,-500.0,0.00018082,2]
[424113573,1780600245000,-795.09743905,0.00018109,2]
[424113580,1780600245000,-1554.73980754,0.00018109,2]
[424113578,1780600245000,-750.81356116,0.00018109,2]
[424113582,1780600245000,-2651.13949792,0.00018109,2]
[424113586,1780600245000,-751.30118915,0.00018109,2]
[424113584,1780600245000,-914.82852417,0.00018109,2]
[424113588,1780600245000,-900.3501634,0.00018109,2]
[424113505,1780600245000,-421.53523517,0.00017761,2]
[424113576,1780600245000,-795.8605674,0.00018109,2]
[424113565,1780600245000,-728.95,0.00018082,2]
[424113575,1780600245000,-979.55138769,0.00018109,2]
[424113559,1780600245000,-1264.77,0.00017808,2]
[424113561,1780600245000,-1189.08701,0.00018,2]
[424113520,1780600245000,-317.27795814,0.00017761,2]
[424113526,1780600245000,-1243.79184603,0.00017761,2]
[424113528,1780600245000,-2120.91159834,0.00017761,2]
[424113531,1780600245000,-164.94725691,0.00017761,2]
[424113524,1780600245000,-600.65084893,0.00017761,2]
[424113590,1780600245000,-392.26613562,0.00018109,2]
[424113530,1780600245000,-731.86281934,0.00017761,2]
[424113535,1780600245000,-161.23641808,0.00017761,2]
[424113507,1780600245000,-309.85530554,0.00017761,2]
[424113540,1780600245000,-334.76435865,0.00017761,2]
[424113542,1780600245000,-725.0877667,0.00017761,2]
[424113544,1780600245000,-377.62553487,0.00017761,2]
[424113546,1780600245000,-720.28013072,0.00017761,2]
[424113538,1780600245000,-601.04095132,0.00017761,2]
[424113548,1780600245000,-697.78307516,0.00017761,2]
[424113550,1780600245000,-763.8181877,0.00017761,2]
[424113537,1780600245000,-245.20009956,0.00017761,2]
[424113746,1780600246000,-183.56044113,0.00018632,2]
[424113734,1780600246000,-1000.0,0.000185,2]
[424113736,1780600246000,-728.95,0.0001863,2]
[424113744,1780600246000,-1966.44455886,0.0001863,2]
[424113740,1780600246000,-1264.77,0.0001863,2]
[424113742,1780600246000,-154.96544114,0.0001863,2]
[424113728,1780600246000,-996.56720338,0.00018459,2]
[424113738,1780600246000,-500.0,0.0001863,2]
[424113726,1780600246000,-2439.8106377,0.00018459,2]
[424113717,1780600246000,-3267.00692358,0.00018184,2]
[424113730,1780600246000,-123.58036485,0.00018459,2]
[424113719,1780600246000,-728.95,0.00018356,2]
[424113715,1780600246000,-954.77273463,0.00018109,2]
[424113721,1780600246000,-500.0,0.00018356,2]
[424113723,1780600246000,-1264.77,0.00018356,2]
[424113724,1780600246000,-6323.3302277,0.00018459,2]
[424113713,1780600246000,-479.96270833,0.00018109,2]
[424113732,1780600246000,-477.13747,0.00018493,2]
[424113766,1780600246000,-770.55648574,0.00018632,2]
[424113790,1780600246000,-824.0,0.00018721,2]
[424113767,1780600246000,-1175.46166523,0.00018632,2]
[424113780,1780600246000,-1080.42019608,0.00018632,2]
[424113801,1780600246000,-500.0,0.00018904,2]
[424113797,1780600246000,-824.0,0.00018882,2]
[424113799,1780600246000,-728.95,0.00018904,2]
[424113803,1780600246000,-1264.77,0.00018904,2]
[424113795,1780600246000,-151.41,0.000188,2]
[424113793,1780600246000,-200.0,0.00018794,2]
[424113775,1780600246000,-1097.79422901,0.00018632,2]
[424113788,1780600246000,-185.0,0.00018714,2]
[424113777,1780600246000,-901.56142698,0.00018632,2]
[424113805,1780600246000,-2121.41,0.00018904,2]
[424113786,1780600246000,-444.0,0.00018714,2]
[424113773,1780600246000,-3181.36739751,0.00018632,2]
[424113771,1780600246000,-1865.68776904,0.00018632,2]
[424113784,1780600246000,-1145.72728155,0.00018632,2]
[424113781,1780600246000,-1046.67461274,0.00018632,2]
[424113770,1780600246000,-900.97627339,0.00018632,2]
[424113792,1780600246000,-758.45774937,0.00018794,2]
[424113811,1780600247000,-579.49,0.00019,2]
[424113806,1780600247000,-10063.16914173,0.00019,2]
[424113809,1780600247000,-24792.27008027,0.00019,2]
[424113814,1780600247000,-151.0,0.00019,2]
[424113818,1780600247000,-151.0,0.00019,2]
[424113826,1780600247000,-355.3,0.00019,2]
[424113820,1780600247000,-151.0,0.00019,2]
[424113829,1780600247000,-760.34072277,0.00019,2]
[424113822,1780600247000,-151.0,0.00019,2]
[424113824,1780600247000,-4790.78898063,0.00019,2]
[424113816,1780600247000,-151.0,0.00019,2]
[424113923,1780600424000,250.26381957,4.001e-05,2]
[424113927,1780600528000,261.34,0.000232,120]
[424113975,1780600929000,9432.75435224,7.6e-05,2]
[424114182,1780601171000,156.0,0.00023223,120]
[424114252,1780601432000,-698.15084257,9.703e-05,2]
[424114258,1780601432000,-500.0,0.00013698,2]
[424114256,1780601432000,-250.0,0.00012223,2]
[424114254,1780601432000,-3043.59210504,0.0001,2]
[424114261,1780601432000,-195.46501777,0.00013698,2]
[424114260,1780601432000,-528.02407837,0.00013698,2]
[424114253,1780601432000,-4301.84915743,9.703e-05,2]
[424114270,1780601432000,-189.44728876,0.00014246,2]
[424114265,1780601432000,-304.53498223,0.00013698,2]
[424114272,1780601432000,-276.88569917,0.00014246,2]
[424114274,1780601432000,-942.792192,0.00014471,2]
[424114268,1780601432000,-500.0,0.00013972,2]
[424114276,1780601432000,-1000.0,0.0001473,2]
[424114278,1780601432000,-31.64170037,0.0001474,2]
[424114267,1780601432000,-500.0,0.00013698,2]
[424114815,1780601441000,-426.97593698,0.000151,2]
[424114805,1780601441000,-500.0,0.00014999,2]
[424114818,1780601441000,-500.0,0.00015138,2]
[424114813,1780601441000,-319.326521,0.00015068,2]
[424114820,1780601441000,-767.92208879,0.00015138,2]
[424114811,1780601441000,-9225.92363394,0.00015,2]
[424114816,1780601441000,-649.7290233,0.000151,2]
[424114803,1780601441000,-500.0,0.00014999,2]
[424114807,1780601441000,-500.33137294,0.00014999,2]
[424114835,1780601441000,-1076.70496028,0.000156,2]
[424114833,1780601441000,-4000.0,0.000155,2]
[424114822,1780601441000,-160.0,0.00015138,2]
[424114797,1780601441000,-624.18,0.00014999,2]
[424114837,1780601441000,-500.0,0.00015686,2]
[424114829,1780601441000,-6088.83036308,0.000154,2]
[424114839,1780601441000,-1076.70496028,0.000158,2]
[424114841,1780601441000,-858.427094,0.000158,2]
[424114824,1780601441000,-500.0,0.00015272,2]
[424114826,1780601441000,-1076.70496028,0.000153,2]
[424114831,1780601441000,-500.0,0.00015412,2]
[424114799,1780601441000,-270.10334224,0.00014999,2]
[424114796,1780601441000,-500.0,0.00014999,2]
[424114809,1780601441000,-500.0,0.00014999,2]
[424114764,1780601441000,-501.48493491,0.00014998,2]
[424114768,1780601441000,-500.0,0.00014998,2]
[424114770,1780601441000,-500.0,0.00014998,2]
[424114766,1780601441000,-500.0,0.00014998,2]
[424114772,1780601441000,-225.49472185,0.00014998,2]
[424114762,1780601441000,-500.0,0.00014998,2]
[424114758,1780601441000,-5000.0,0.00014593,2]
[424114760,1780601441000,-182.03906478,0.0001474,2]
[424114774,1780601441000,-274.50527815,0.00014998,2]
[424114801,1780601441000,-229.89665776,0.00014999,2]
[424114790,1780601441000,-500.0,0.00014998,2]
[424114782,1780601441000,-500.0,0.00014998,2]
[424114792,1780601441000,-408.72688897,0.00014999,2]
[424114786,1780601441000,-389.67487168,0.00014998,2]
[424114778,1780601441000,-274.50527815,0.00014998,2]
[424114776,1780601441000,-225.49472185,0.00014998,2]
[424114780,1780601441000,-500.0,0.00014998,2]
[424114784,1780601441000,-500.0,0.00014998,2]
[424114794,1780601441000,-91.27311103,0.00014999,2]
[424114827,1780601441000,-1076.70496028,0.000154,2]
[424114788,1780601441000,-110.32512832,0.00014998,2]
[424114844,1780601441000,-175.72859176,0.00015989,2]
[424114843,1780601441000,-500.0,0.0001596,2]
[424114849,1780601441000,-198.15865547,0.00016082,2]
[424114899,1780601441000,-519.42240872,0.00016864,2]
[424114903,1780601441000,-129.96885818,0.00016864,2]
[424114913,1780601441000,-505.05281646,0.00016864,2]
[424114847,1780601441000,-218.97423379,0.00016,2]
[424114905,1780601441000,-500.0,0.00016864,2]
[424114909,1780601441000,-503.36622058,0.00016864,2]
[424114911,1780601441000,-500.0,0.00016864,2]
[424114907,1780601441000,-502.114375,0.00016864,2]
[424114917,1780601441000,-500.0,0.00016864,2]
[424114901,1780601441000,-159.20631275,0.00016864,2]
[424114918,1780601441000,-243.30651901,0.00016864,2]
[424114922,1780601441000,-500.0,0.00016864,2]
[424114926,1780601441000,-42.89789807,0.00016864,2]
[424114924,1780601441000,-151.48,0.00016864,2]
[424114928,1780601441000,-457.10210193,0.00016864,2]
[424114934,1780601441000,-500.0,0.00016864,2]
[424114932,1780601441000,-224.07,0.00016864,2]
[424114930,1780601441000,-500.0,0.00016864,2]
[424114938,1780601441000,-556.47,0.00016864,2]
[424114936,1780601441000,-500.0,0.00016864,2]
[424114920,1780601441000,-258.59935044,0.00016864,2]
[424114897,1780601441000,-501.55105572,0.00016864,2]
[424114915,1780601441000,-501.643361,0.00016864,2]
[424114880,1780601441000,-436.26344689,0.00016864,2]
[424114850,1780601441000,-337.89977964,0.00016082,2]
[424114852,1780601441000,-170.24346447,0.00016082,2]
[424114854,1780601441000,-195.77330417,0.00016082,2]
[424114860,1780601441000,-152.58565927,0.00016082,2]
[424114883,1780601441000,-500.0,0.00016864,2]
[424114858,1780601441000,-179.54184725,0.00016082,2]
[424114861,1780601441000,-161.80885292,0.00016082,2]
[424114865,1780601441000,-500.0,0.00016233,2]
[424114871,1780601441000,-427.78902958,0.00016443,2]
[424114863,1780601441000,-169.2404784,0.00016089,2]
[424114856,1780601441000,-169.13063378,0.00016082,2]
[424114867,1780601441000,-185.0,0.00016244,2]
[424114873,1780601441000,-667.75193836,0.00016443,2]
[424114875,1780601441000,-415.96940846,0.00016507,2]
[424114877,1780601441000,-175.72859175,0.00016775,2]
[424114886,1780601441000,-500.0,0.00016864,2]
[424114888,1780601441000,-360.67316308,0.00016864,2]
[424114890,1780601441000,-321.01133525,0.00016864,2]
[424114879,1780601441000,-199.83808499,0.00016864,2]
[424114892,1780601441000,-500.0,0.00016864,2]
[424114869,1780601441000,-374.31540088,0.00016443,2]
[424114963,1780601442000,-255.96089958,0.00016864,2]
[424114955,1780601442000,-500.0,0.00016864,2]
[424114952,1780601442000,-500.0,0.00016864,2]
[424114953,1780601442000,-500.0,0.00016864,2]
[424114950,1780601442000,-500.60145046,0.00016864,2]
[424114940,1780601442000,-476.0575199,0.00016864,2]
[424114944,1780601442000,-500.0,0.00016864,2]
[424114946,1780601442000,-500.0,0.00016864,2]
[424114942,1780601442000,-500.0,0.00016864,2]
[424114965,1780601442000,-396.31731094,0.00016865,2]
[424114948,1780601442000,-500.33451948,0.00016864,2]
[424114959,1780601442000,-500.0,0.00016864,2]
[424114969,1780601442000,-340.48692894,0.00016865,2]
[424114961,1780601442000,-472.47738368,0.00016864,2]
[424114957,1780601442000,-500.0,0.00016864,2]
[424114988,1780601442000,-10035.10564601,0.00017,2]
[424114992,1780601442000,-2761.43621564,0.00017,2]
[424114982,1780601442000,-338.48095679,0.00016872,2]
[424114980,1780601442000,-246.36639276,0.00016865,2]
[424114978,1780601442000,-323.61770584,0.00016865,2]
[424114984,1780601442000,-221.71348547,0.000169,2]
[424114972,1780601442000,-338.26126755,0.00016865,2]
[424114976,1780601442000,-305.17131854,0.00016865,2]
[424114970,1780601442000,-391.54660835,0.00016865,2]
[424114967,1780601442000,-675.79955929,0.00016865,2]
[424114990,1780601442000,-2536.51378436,0.00017,2]
[424114974,1780601442000,-359.08369451,0.00016865,2]
[424115335,1780601444000,-610.34263709,0.00017736,2]
[424115302,1780601444000,-485.42655876,0.00017388,2]
[424115318,1780601444000,-691865.20332011,0.00017636,2]
[424115320,1780601444000,-500.0,0.00017686,2]
[424115326,1780601444000,-1351.59911858,0.00017736,2]
[424115324,1780601444000,-792.63462188,0.00017736,2]
[424115329,1780601444000,-783.09321669,0.00017736,2]
[424115332,1780601444000,-676.5225351,0.00017736,2]
[424115328,1780601444000,-680.97385787,0.00017736,2]
[424115334,1780601444000,-718.16738902,0.00017736,2]
[424115353,1780601444000,-414199.0,0.00018,2]
[424115339,1780601444000,-647.23541168,0.00017736,2]
[424115343,1780601444000,-365.77467099,0.00017743,2]
[424115341,1780601444000,-676.96191358,0.00017743,2]
[424115348,1780601444000,-500.0,0.0001796,2]
[424115345,1780601444000,-348.38,0.00017749,2]
[424115300,1780601444000,-457.75697782,0.00017388,2]
[424115351,1780601444000,-500.0,0.0001796,2]
[424115355,1780601444000,-990.79327735,0.00018084,2]
[424115359,1780601444000,-851.21732234,0.00018084,2]
[424115357,1780601444000,-1689.49889822,0.00018084,2]
[424115337,1780601444000,-739.09917829,0.00017736,2]
[424115314,1780601444000,-175.72859175,0.00017561,2]
[424115298,1780601444000,-538.62554176,0.00017388,2]
[424115308,1780601444000,-507.72143519,0.00017395,2]
[424115237,1780601444000,-6151.10398702,0.00017,2]
[424115241,1780601444000,-468.942,0.00017,2]
[424115239,1780601444000,-813.5,0.00017,2]
[424115275,1780601444000,-200.0,0.00017,2]
[424115281,1780601444000,-186.40252816,0.00017308,2]
[424115288,1780601444000,-594.47596641,0.00017388,2]
[424115279,1780601444000,-500.0,0.00017138,2]
[424115277,1780601444000,-500.0,0.00017138,2]
[424115285,1780601444000,-596.48809013,0.00017308,2]
[424115286,1780601444000,-931.08062818,0.00017308,2]
[424115273,1780601444000,-77019.58227965,0.00017,2]
[424115292,1780601444000,-510.7303934,0.00017388,2]
[424115290,1780601444000,-1013.69933893,0.00017388,2]
[424115296,1780601444000,-507.39190133,0.00017388,2]
[424115283,1780601444000,-335.5245507,0.00017308,2]
[424115294,1780601444000,-587.31991252,0.00017388,2]
[424115365,1780601444000,-846.20239198,0.00018092,2]
[424115304,1780601444000,-492.73278553,0.00017388,2]
[424115316,1780601444000,-512.79971512,0.00017635,2]
[424115312,1780601444000,-500.0,0.00017412,2]
[424115306,1780601444000,-182.88733549,0.00017388,2]
[424115310,1780601444000,-500.0,0.00017412,2]
[424115363,1780601444000,-845.65316888,0.00018084,2]
[424115322,1780601444000,-500.0,0.00017686,2]
[424115367,1780601444000,-897.70923627,0.00018092,2]
[424115421,1780601444000,-38000.0,0.00019161,3]
[424115425,1780601444000,-38000.0,0.0001917,3]
[424115423,1780601444000,-160.0,0.00019161,3]
[424115419,1780601444000,-10578.30748736,0.0001916,2]
[424115429,1780601444000,-767.92208879,0.00019178,3]
[424115431,1780601444000,-151.0,0.00019178,2]
[424115427,1780601444000,-160.0,0.0001917,3]
[424115433,1780601444000,-151.0,0.00019178,2]
[424115436,1780601444000,-880.96,0.00019178,2]
[424115440,1780601444000,-151.0,0.00019178,2]
[424115417,1780601444000,-500.0,0.00019056,2]
[424115456,1780601444000,-151.0,0.00019178,2]
[424115448,1780601444000,-151.0,0.00019178,2]
[424115438,1780601444000,-436.84,0.00019178,2]
[424115452,1780601444000,-185.180997,0.00019178,2]
[424115450,1780601444000,-185.180997,0.00019178,2]
[424115442,1780601444000,-151.0,0.00019178,2]
[424115444,1780601444000,-185.180997,0.00019178,2]
[424115458,1780601444000,-151.0,0.00019178,2]
[424115446,1780601444000,-151.0,0.00019178,2]
[424115460,1780601444000,-151.0,0.00019178,2]
[424115361,1780601444000,-978.86652087,0.00018084,2]
[424115454,1780601444000,-185.180997,0.00019178,2]
[424115413,1780601444000,-151.0,0.00019,2]
[424115434,1780601444000,-151.0,0.00019178,2]
[424115415,1780601444000,-151.0,0.00019,2]
[424115369,1780601444000,-232.27200502,0.00018195,2]
[424115411,1780601444000,-151.0,0.00019,2]
[424115371,1780601444000,-199.01879555,0.00018195,2]
[424115372,1780601444000,-500.0,0.00018234,2]
[424115375,1780601444000,-199.42406671,0.00018234,2]
[424115377,1780601444000,-600.0,0.00018445,2]
[424115381,1780601444000,-500.0,0.00018508,2]
[424115379,1780601444000,-319.326521,0.00018493,2]
[424115387,1780601444000,-1021.46078681,0.00018606,2]
[424115393,1780601444000,-3407.3147326,0.00018776,2]
[424115383,1780601444000,-1188.95193282,0.00018606,2]
[424115385,1780601444000,-2027.39867787,0.00018606,2]
[424115391,1780601444000,-1838.56,0.0001863,2]
[424115409,1780601444000,-194.304769,0.00019,2]
[424115389,1780601444000,-189.53565022,0.0001863,2]
[424115405,1780601444000,-964.13,0.000189,2]
[424115398,1780601444000,-500.0,0.00018782,2]
[424115400,1780601444000,-505.63849958,0.00018794,2]
[424115407,1780601444000,-1838.56,0.00018904,2]
[424115402,1780601444000,-271.85,0.00018816,2]
[424115397,1780601444000,-1725.7457608,0.00018776,2]
[424115394,1780601444000,-10517.2414007,0.00018776,2]
[424115523,1780601445000,-7369.9611,0.00019178,2]
[424115537,1780601445000,-151.0,0.00019178,2]
[424115518,1780601445000,-7369.9611,0.00019178,2]
[424115521,1780601445000,-945.677402,0.00019178,2]
[424115531,1780601445000,-404.852024,0.00019178,2]
[424115529,1780601445000,-7369.9611,0.00019178,2]
[424115527,1780601445000,-404.852024,0.00019178,2]
[424115533,1780601445000,-151.0,0.00019178,2]
[424115525,1780601445000,-7369.9611,0.00019178,2]
[424115535,1780601445000,-404.852024,0.00019178,2]
[424115539,1780601445000,-404.852024,0.00019178,2]
[424115545,1780601445000,-280.258945,0.00019178,2]
[424115552,1780601445000,-3983.771378,0.00019178,2]
[424115558,1780601445000,-280.258945,0.00019178,2]
[424115556,1780601445000,-3983.771378,0.00019178,2]
[424115554,1780601445000,-165.930874,0.00019178,2]
[424115562,1780601445000,-280.258945,0.00019178,2]
[424115543,1780601445000,-165.930874,0.00019178,2]
[424115548,1780601445000,-165.930874,0.00019178,2]
[424115560,1780601445000,-3983.771378,0.00019178,2]
[424115546,1780601445000,-3983.771378,0.00019178,2]
[424115516,1780601445000,-945.677402,0.00019178,2]
[424115550,1780601445000,-280.258945,0.00019178,2]
[424115541,1780601445000,-165.930874,0.00019178,2]
[424115514,1780601445000,-945.677402,0.00019178,2]
[424115464,1780601445000,-174.867301,0.00019178,2]
[424115508,1780601445000,-183.102665,0.00019178,2]
[424115564,1780601445000,-151.0,0.00019178,2]